Cogmind - Beta 16 @@@ ROGUE MODE // 2025.11.27 @ 18:13:14 Player: Mozco Result: Self-destructed Performance ------------- Evolutions (5) 2500 Regions Visited (21) 4200 Robots Destroyed (438) 2190 Value Destroyed (16577) 16577 Prototype IDs (77) 1540 Alien Tech Used (0) 0 Bonus (7909) 7909 TOTAL SCORE: 34916 Bonus ------- Triggered High Security 500 High Alert Combat Kills 5016 Follower Combat Kills 1460 Network Hubs Disabled 600 Aligned with FarCom 300 Met Data Miner 300 Built Enhanced Grunts 300 Met R17 at Cetus 500 Friendly Fire -1067 Cogmind --------- Core Integrity 307/1000 Matter 266/300 Energy 190/315 System Corruption 66% Temperature Cool (57) Movement Core (1600) Ox31 Location -5/Hub_04(d) Parts ------- > --- POWER (2) -------- Neutrino Core > --- PROPULSION (6) --- (None) > --- UTILITY (4) ------ Huge Storage Unit > --- WEAPON (5) ------- (None) > --- INVENTORY (25) --- Improved Energy Well (400) Improved Matter Compressor (300) IFF Parser Improved Kinecellerator Improved Kinecellerator Improved Transmission Jammer Long-range Tractor Beam Drone Bay (2/2) Experimental Thermic Cannon Scatter Rocket Array Mini Smartbomb Launcher Peak State ------------ > --- POWER ------------ Particle Reactor Quantum Reactor > --- PROPULSION ------- Medium Treads Armored Medium Treads Centrium Heavy Treads Centrium Heavy Treads > --- UTILITY ---------- Experimental Heat Sink Huge Storage Unit Experimental Phase Shifter Improved Dynamic Insulation System > --- WEAPON ----------- KE Penetrator Improved KE Penetrator Improved KE Penetrator Railgun Railgun > --- INVENTORY -------- Neutrino Core Neutrino Core Improved Medium Treads Improved Medium Treads Improved Medium Treads Centrium Heavy Treads Improved Energy Well Improved Matter Compressor IFF Parser Improved Kinecellerator Improved Kinecellerator Improved Transmission Jammer Improved Shield Generator Long-range Tractor Beam Drone Bay EMDS Experimental Thermic Cannon KE Penetrator Light Antimatter Cannon Light Antimatter Cannon Advanced EMP Blaster Scatter Rocket Array Mini Smartbomb Launcher [Rating: 137] Favorites ----------- Power Angular Momentum Engine Engine Angular Momentum Engine Power Core Neutrino Core Reactor Particle Reactor Propulsion Light Treads Treads Light Treads Utility Huge Storage Unit Device Kinecellerator Storage Huge Storage Unit Processor Advanced Targeting Computer Hackware Hacking Suite Protection Medium Reflective Plating Weapon Improved KE Penetrator Energy Gun EM Shotgun Energy Cannon Cooled Plasma Cannon Ballistic Gun Improved KE Penetrator Ballistic Cannon Light Antimatter Cannon Launcher Long-range Missile Launcher Special Melee Weapon Datajack Build | -11 -10 -10 -9 -9 -9 -8 -8 -8 -7 -7 -7 -6 -6 -6 -6 -5 -5 -5 -5 -5 -5 ------- Run | Yrd Mat Min Mat Min Exi Min Mat Sto Fac Low Low Fac Low Low Dat Pro Fac Ext Cet Arc Hub Slots Evolved 10 | . . . 2 . . . 2 . 2 . . 2 . . . . 2 . . . . Power 1 | . . . . . . . . . . . . 1 . . . . . . . . . Propulsion 4 | . . . 1 . . . 1 . 2 . . . . . . . . . . . . Utility 2 | . . . 1 . . . 1 . . . . . . . . . . . . . . Weapon 3 | . . . . . . . . . . . . 1 . . . . 2 . . . . Parts Attached 215 | 6 10 3 15 . 3 4 12 18 34 . 2 41 5 1 . 1 14 13 2 11 20 Power 28 | 1 1 . 2 . . . 4 . 4 . . 6 . . . . 1 2 . 1 6 Engine 13 | 1 1 . 2 . . . 3 . 2 . . 4 . . . . . . . . . Core 11 | . . . . . . . 1 . 2 . . 2 . . . . 1 2 . . 3 Reactor 4 | . . . . . . . . . . . . . . . . . . . . 1 3 Propulsion 62 | 2 2 2 4 . . 4 . 9 7 . 1 11 1 . . 1 4 6 1 4 3 Treads 62 | 2 2 2 4 . . 4 . 9 7 . 1 11 1 . . 1 4 6 1 4 3 Leg . | . . . . . . . . . . . . . . . . . . . . . . Wheel . | . . . . . . . . . . . . . . . . . . . . . . Hover . | . . . . . . . . . . . . . . . . . . . . . . Flight . | . . . . . . . . . . . . . . . . . . . . . . Utility 63 | 1 2 . 3 . 1 . 3 5 8 . 1 17 3 . . . 4 2 1 4 8 Device 37 | . . . 1 . . . 1 3 3 . . 12 3 . . . 3 2 . 4 5 Storage 7 | 1 1 . 1 . 1 . . . 2 . . 1 . . . . . . . . . Processor 5 | . . . 1 . . . 2 1 . . . 1 . . . . . . . . . Hackware 6 | . . . . . . . . 1 1 . . 2 . . . . . . . . 2 Protection 8 | . 1 . . . . . . . 2 . 1 1 . . . . 1 . 1 . 1 Artifact . | . . . . . . . . . . . . . . . . . . . . . . Weapon 62 | 2 5 1 6 . 2 . 5 4 15 . . 7 1 1 . . 5 3 . 2 3 Energy Gun 17 | 1 5 . 4 . . . 3 1 1 . . 2 . . . . . . . . . Energy Cannon 6 | . . . . . 1 . . 1 2 . . 1 . . . . . . . . 1 Ballistic Gun 18 | 1 . . . . . . 2 . 4 . . 3 . 1 . . 2 1 . 2 2 Ballistic Cannon 7 | . . . . . . . . . 3 . . 1 . . . . 2 1 . . . Launcher 13 | . . 1 2 . . . . 2 5 . . . 1 . . . 1 1 . . . Special Weapon . | . . . . . . . . . . . . . . . . . . . . . . Impact Weapon . | . . . . . . . . . . . . . . . . . . . . . . Slashing Weapon . | . . . . . . . . . . . . . . . . . . . . . . Piercing Weapon . | . . . . . . . . . . . . . . . . . . . . . . Special Melee Weapon 1 | . . . . . 1 . . . . . . . . . . . . . . . . Unidentified Prototypes 27 | . . . 3 . . . 3 2 8 . . 3 . . . . 2 . 2 1 3 Corrupted Parts 18 | . . 2 . . . 4 . 3 . . . . . . . . . . 1 3 5 System Corruption 103 | . . 14 . . . 14 . 17 . . . . . . . . . . 2 20 36 Parts Lost 69 | . 4 . 3 . . . 2 1 10 . . 9 1 . . 3 2 . . . 34 Power 11 | . 1 . 1 . . . . . 2 . . 1 . . . 1 . . . . 5 Propulsion 20 | . . . . . . . 1 . 4 . . 2 1 . . 2 1 . . . 9 Utility 18 | . . . 1 . . . 1 1 2 . . 5 . . . . . . . . 8 Weapon 20 | . 3 . 1 . . . . . 2 . . 1 . . . . 1 . . . 12 Highest Loss Streak 31 | . 2 . 2 . . . 1 1 7 . . 3 1 . . 2 1 . . . 31 To Critical Strikes . | . . . . . . . . . . . . . . . . . . . . . . Average Backups 21 | 1 7 10 16 20 20 20 19 22 21 25 24 24 24 25 25 23 24 25 23 23 21 Power 1 | . 1 1 . 1 1 1 1 1 1 1 1 . 1 1 1 . . 1 1 1 1 Propulsion 4 | . 1 4 6 8 8 8 6 5 2 3 2 4 5 5 5 3 3 3 4 4 4 Utility 6 | . . 1 . 2 2 2 2 5 4 7 7 9 9 9 9 9 10 10 8 8 8 Weapon 9 | . 3 3 7 8 8 8 8 10 13 14 14 10 9 10 10 10 9 10 9 9 7 Tool/Special . | . . . . . . . . . . . . . . . . . . . . . . Unused Backups 22 | . 1 . 1 . . . 1 1 7 . . 3 . . . . 1 1 1 2 3 Power 3 | . . . . . . . . 1 1 . . . . . . . . . . 1 . Propulsion 1 | . . . . . . . . . . . . . . . . . . 1 . . . Utility 7 | . . . . . . . . . 2 . . 1 . . . . . . 1 . 3 Weapon 11 | . 1 . 1 . . . 1 . 4 . . 2 . . . . 1 . . 1 . Tool/Special . | . . . . . . . . . . . . . . . . . . . . . . Average Slot Usage (%) 96 | . 98 99 97 100 90 88 90 97 97 100 100 97 99 100 100 93 97 99 97 89 82 Engine 6 | . 14 13 11 11 11 11 3 9 5 7 7 6 6 6 6 6 5 2 . . . Core 3 | . . . . . . . 5 . 1 . . 3 6 6 6 1 5 7 11 9 2 Treads 36 | . 28 28 32 33 33 33 35 35 45 46 46 39 39 40 40 39 34 35 33 25 21 Device 12 | . . . 10 11 11 11 7 8 7 16 15 13 20 20 20 20 13 13 16 16 13 Storage 8 | . 25 14 11 11 11 11 9 9 7 7 7 6 6 6 6 6 5 5 5 5 5 Processor 4 | . . . 4 11 11 11 15 18 8 . . . . . . . . . . . . Protection 2 | . 1 14 5 . . . . . 4 5 7 2 . . . . 2 2 . . . Energy Gun 4 | . 23 16 21 22 5 . 6 8 1 . . . . . . . . . . . . Energy Cannon 3 | . . . . . 3 11 4 2 4 5 7 5 6 6 6 6 . 1 . . . Ballistic Gun 7 | . 4 . . . . . . 4 2 1 . 11 7 6 6 8 13 15 6 22 24 Ballistic Cannon 2 | . . . . . . . . . 5 1 . . . . . 1 10 11 17 5 . Launcher 1 | . . 11 . . . . 1 1 . 5 7 1 4 6 6 2 . . 3 . 1 Peak Build Rating 137 | 6 10 10 18 18 33 33 40 43 56 55 56 81 80 78 78 80 102 101 112 124 137 Average Rating 58 | 4 8 9 16 18 21 33 32 32 40 52 54 71 78 77 78 75 95 98 101 117 123 On Entrance 53 | . 6 10 9 18 18 33 33 29 38 53 52 56 79 78 78 78 80 98 95 112 124 Avg Prop Armor Cover (%) . | . . . . . . . . . . . . . . . . . . . . . . Naked Turns . | . . . . . . . . . . . . . . . . . . . . . . Heaviest Build 161 | 12 36 34 56 50 85 62 67 111 120 130 130 142 126 127 127 127 150 161 155 154 160 Greatest Support 218 | 40 40 40 60 60 60 60 80 80 120 120 128 158 150 150 150 160 178 171 198 218 218 Greatest Overweight (x) 1 | . . . 1 . 1 1 . 1 1 1 1 1 . . . . 1 . . . 1 Average Overweight (x) . | . . . . . . 1 . . . . . . . . . . . . . . . Largest Inventory Capacity 25 | 8 15 15 20 20 25 20 20 25 25 25 25 25 25 25 25 25 25 25 25 25 25 Average Capacity 23 | 6 14 15 19 20 22 20 20 23 25 25 25 25 25 25 25 25 25 25 25 25 25 Most Carried 25 | 2 11 11 20 20 21 20 20 25 25 25 25 25 25 25 25 25 25 25 25 25 25 Average Carried 21 | 1 7 10 16 20 20 20 19 23 22 25 24 24 24 25 25 23 24 24 24 24 23 Final Capacity 25 | 8 15 15 20 20 20 20 20 25 25 25 25 25 25 25 25 25 25 25 25 25 25 Final Carried 25 | 2 10 11 20 20 20 20 20 22 25 25 25 25 25 25 25 22 25 25 25 25 11 Class Distribution -------------------- 33% | Scavenger-Mutant 17% | Mutant 14% | Scavenger-Skirmisher 14% | Gunner 12% | Scavenger-Tank 7% | Skirmisher Dominant Class ---------------- Mutant | -10/Materials Mutant | -10/Mines Mutant | -9/Materials Scavenger-Mutant | -9/Mines Scavenger-Mutant | -9/Exiles Scavenger-Mutant | -8/Mines Scavenger-Mutant | -8/Materials Scavenger-Mutant | -8/Storage Mutant | -7/Factory Scavenger-Mutant | -7/Lower Caves Scavenger-Mutant | -7/Lower Caves Scavenger-Skirmisher | -6/Factory Gunner | -6/Lower Caves Gunner | -6/Lower Caves Gunner | -6/Data Miner Gunner | -5/Proximity Caves Skirmisher | -5/Factory Scavenger-Skirmisher | -5/Extension Scavenger-Skirmisher | -5/Cetus Scavenger-Tank | -5/Archives Scavenger-Tank | -5/Hub_04(d) Resources | -11 -10 -10 -9 -9 -9 -8 -8 -8 -7 -7 -7 -6 -6 -6 -6 -5 -5 -5 -5 -5 -5 ----------- Run | Yrd Mat Min Mat Min Exi Min Mat Sto Fac Low Low Fac Low Low Dat Pro Fac Ext Cet Arc Hub Matter Collected 12419 | 213 162 91 389 17 . 50 380 452 1729 98 223 2202 185 30 . 204 1061 811 132 710 3280 Remotely 1829 | . . . . . . . . 13 . . . . . . . . 206 84 . . 1526 Salvage Created 17914 | . 812 88 923 . . 85 1462 2471 2527 82 216 2875 239 22 . 206 662 875 490 431 3448 Parts 914 | . 53 14 74 . . 3 61 124 126 8 7 155 14 2 . 14 26 49 18 26 140 Haulers Intercepted 22 | . 2 . 3 . . . 3 3 4 . . 2 . . . . 2 1 . . 2 Recyclers Shooed 15 | . 2 . 1 . . . 2 . 1 . . 8 . . . . . . . . 1 Parts Field Recycled 22 | . . . . . . . . . 21 1 . . . . . . . . . . . Retrieved Matter 172 | . . . . . . . . . 170 2 . . . . . . . . . . . Parts Self-Destructed 25 | . . . . . . . . . . 5 5 . 3 . . 12 . . . . . Prevented 8 | . . . . . . . . . . . . . 8 . . . . . . . . Parts Restored 1 | . . . . . . . . . . . . . . . . . . 1 . . . Broken 1 | . . . . . . . . . . . . . . . . . . 1 . . . Kills | -11 -10 -10 -9 -9 -9 -8 -8 -8 -7 -7 -7 -6 -6 -6 -6 -5 -5 -5 -5 -5 -5 ------- Run | Yrd Mat Min Mat Min Exi Min Mat Sto Fac Low Low Fac Low Low Dat Pro Fac Ext Cet Arc Hub Combat Hostiles Destroyed 307 | . 19 5 19 . . 2 24 42 48 7 4 49 5 . . 10 11 11 6 1 44 Guns 118 | . 18 . 14 . . . 4 15 8 . . 23 1 . . 1 6 5 . 1 22 Cannons 57 | . . . . . . 1 3 7 20 1 1 13 1 . . 2 3 3 . . 2 AOE 109 | . 1 5 5 . . 1 12 17 17 6 3 11 3 . . 7 2 3 1 . 15 Classes Destroyed 20 | . 5 1 3 . . 1 3 2 2 . 1 2 . . . . . . . . . Worker 36 | . . . 2 . . . 4 6 8 . . 5 . . . . 1 2 . . 8 Builder 22 | . . . 1 . . . 2 . 3 . . 11 . . . . . 1 . . 4 Tunneler 3 | . . 1 . . . . . . 1 . . . . . . . . . . . 1 Hauler 22 | . 2 . 3 . . . 3 3 4 . . 2 . . . . 2 1 . . 2 Recycler 14 | . . . . . . . 3 2 4 . . 1 . . . . . 1 . . 3 Mechanic 3 | . . . . . . . . 2 1 . . . . . . . . . . . . Operator 13 | . 1 . . . . . . 1 . . . 2 . . . . . . . 9 . Watcher 15 | . 2 . 3 . . . 2 1 1 . . 1 . . . . . 2 2 . 1 Swarmer 60 | . 6 5 9 . . . 3 3 9 7 . 5 3 . . 6 . 4 . . . Saboteur 3 | . . . . . . . . . . . . 1 . . . . . . . . 2 Grunt 130 | . 13 . 5 . . 1 14 21 19 . 4 23 . . . 1 6 5 . . 18 Brawler 15 | . . . . . . 1 1 4 . . . 2 . . . . 1 . . . 6 Duelist 7 | . . . . . . . 1 3 . . . 2 . . . . . . . . 1 Protector 7 | . . . . . . . . 1 1 . . . . . . . . . . . 5 Sentry 39 | . . . 5 . . . 4 10 5 . . 5 . . . 1 2 1 . 1 5 Specialist 3 | . . . . . . . . . 3 . . . . . . . . . . . . Hunter 16 | . . . . . . . 1 . 8 . . 4 2 . . 1 . . . . . Programmer 13 | . . . . . . . . . 3 . . 6 . . . . 2 . . . 2 Behemoth 3 | . . . . . . . . . . . . 1 . . . 1 . 1 . . . Cetus Guard 6 | . . . . . . . . . . . . . . . . . . . 6 . . Enhanced Grunt 1 | . . . . . . . . . . . . . . . . . . . . . 1 Lightning 5 | . . . . . . . . . . . . . . . . . . . . . 5 Decomposer 4 | . . . . . . . . . . . . . 3 1 . . . . . . . Samaritan 2 | . . . . . . . . . . . 2 . . . . . . . . . . Thug 2 | . . . . . . . . 1 . . . . . . . . . . . 1 . Best Kill Streak 23 | . 5 4 8 . . 2 7 8 19 4 4 12 3 . . 5 6 4 4 3 23 Combat Bots Only 13 | . 5 3 6 . . 2 4 8 11 4 4 8 3 . . 5 6 4 3 1 13 Max Kills in Single Turn 6 | . 1 2 3 . . 2 2 5 6 3 2 4 2 1 . 5 1 2 2 1 4 Gunslinging 1 | . . . . . . . . . . . . . . . . . . . . . 1 Exploded 5 | . 1 2 2 . . 1 2 3 4 3 2 2 2 . . 5 1 2 1 . 3 Melee . | . . . . . . . . . . . . . . . . . . . . . . Uniques/NPCs Destroyed . | . . . . . . . . . . . . . . . . . . . . . . Combat | -11 -10 -10 -9 -9 -9 -8 -8 -8 -7 -7 -7 -6 -6 -6 -6 -5 -5 -5 -5 -5 -5 -------- Run | Yrd Mat Min Mat Min Exi Min Mat Sto Fac Low Low Fac Low Low Dat Pro Fac Ext Cet Arc Hub Hostile Shots Fired 1713 | . 85 17 57 . . 1 61 96 332 15 30 421 27 16 . 49 43 32 16 . 415 Missed 577 | . 25 3 18 . . . 16 35 128 11 8 146 6 5 . 17 10 8 6 . 135 Hits 1136 | . 60 14 39 . . 1 45 61 204 4 22 275 21 11 . 32 33 24 10 . 280 Melee 26 | . . . . . . . . 9 . . . . . . . . . . . . 17 Projectile 1110 | . 60 14 39 . . 1 45 52 204 4 22 275 21 11 . 32 33 24 10 . 263 AOE 3 | . . . . . . . . . . . . 1 . . . . . . . . 2 Critical Strikes 51 | . . . 1 . . . . 5 10 . 1 9 . . . . 2 . 2 . 21 Part Disruptions 2 | . . . . . . . . . . . . . . . . . 1 . . . 1 Actively Blocked 2 | . . . . . . . . . . . . . . . . . 1 . . . 1 Damage Taken 18876 | . 705 137 618 . . 15 731 1080 2400 118 260 3452 366 106 . 779 717 336 221 . 6835 Core 1728 | . 146 6 126 . . . 77 140 178 . 37 222 22 . . 81 18 40 18 . 617 Absorbed by Shields 2135 | . . . . . . . 68 108 607 34 84 214 . . . . . 183 80 . 757 Redirected to Shielding 43 | . . . . . . . . . . . 21 22 . . . . . . . . . Ignored by Resistances 63 | . . . . . . . . . . . . . . . . . 28 35 . . . Regen/Repaired (Parts) 1514 | . 254 . 219 . . . . 180 112 . . 749 . . . . . . . . . Core Remaining (%) 58 | 100 . 39 . . . 68 . 60 . . 21 . . . . 61 . . . . . Volleys Fired 801 | . 62 9 49 . . 2 57 85 114 8 11 169 11 1 . 20 32 24 15 27 105 Largest 5 | . 2 2 2 . . 1 2 2 2 1 1 3 3 2 . 3 5 5 3 5 5 Hottest 288 | . 90 90 90 . . 100 100 141 171 120 120 183 96 65 . 116 201 288 135 219 185 Shots Fired 1852 | . 114 13 90 . . 2 90 127 207 9 11 391 20 2 . 50 106 82 24 112 402 Gun 1327 | . 114 6 85 . . . 69 98 70 . . 269 9 1 . 21 56 53 14 103 359 Cannon 412 | . . . . . . 2 13 16 125 4 8 106 6 1 . 24 48 25 2 9 23 Launcher 113 | . . 7 5 . . . 8 13 12 5 3 16 5 . . 5 2 4 8 . 20 Special . | . . . . . . . . . . . . . . . . . . . . . . Kinetic 1170 | . 18 . . . . . 4 28 118 . . 279 9 1 . 30 99 76 16 112 380 Thermal 319 | . 10 . . . . 2 20 73 77 4 8 96 6 1 . 15 5 2 . . . Explosive 70 | . . 7 5 . . . 8 5 7 5 3 13 1 . . 5 2 4 . . 5 Electromagnetic 293 | . 86 6 85 . . . 58 21 5 . . 3 4 . . . . . 8 . 17 Robot Hit Streak 24 | . 9 10 12 . . 9 24 16 21 3 8 23 3 4 . 10 18 9 3 6 18 Robot Miss Streak 6 | . 4 . 3 . . . 4 2 2 3 1 4 2 . . 5 2 3 2 3 6 Penetration Max 1 | . . . . . . . . . 1 . . 1 . . . . . 1 . . 1 Secondary Targets 24 | . 3 . 1 . . . . . 1 . . 5 . . . . . . . . 14 Max Gunslinging Chain 2 | . 1 . 1 . . . . . 1 . . 1 . . . . . . . . 2 Shots Hit Robots 1152 | . 81 3 71 . 4 2 76 99 137 3 9 235 6 1 . 31 67 34 10 62 221 Core Hits 841 | . 48 7 46 . . 1 55 93 97 9 13 138 7 1 . 16 28 28 12 24 218 Critical Kills 24 | . . . . . . . 2 . 2 . . 5 . . . . 5 4 . 2 4 Critical Parts Destroyed 24 | . . . . . . . . . . . . 2 . . . . 4 5 . 4 9 Critical Strikes 85 | . . . . . . . 2 5 10 . 2 22 . . . 2 10 11 . 6 15 Burn 20 | . . . . . . . . 5 . . 2 13 . . . . . . . . . Meltdown 5 | . . . . . . . 2 . 2 . . 1 . . . . . . . . . Destroy 48 | . . . . . . . . . . . . 7 . . . 1 9 11 . 6 14 Blast 11 | . . . . . . . . . 8 . . 1 . . . 1 1 . . . . Corrupt 1 | . . . . . . . . . . . . . . . . . . . . . 1 Melee Attacks 4 | . . . . . 4 . . . . . . . . . . . . . . . . Impact . | . . . . . . . . . . . . . . . . . . . . . . Slashing . | . . . . . . . . . . . . . . . . . . . . . . Piercing . | . . . . . . . . . . . . . . . . . . . . . . Sneak Attacks 4 | . . . . . 4 . . . . . . . . . . . . . . . . Combat Hostiles . | . . . . . . . . . . . . . . . . . . . . . . Follow-up Attacks . | . . . . . . . . . . . . . . . . . . . . . . Damage Inflicted 51127 | . 1164 387 1557 3 . 378 4416 5398 7080 542 489 8447 571 31 . 1586 2239 1776 1621 1778 11664 Guns 19661 | . 1061 28 1058 . . . 1147 1303 891 . . 4356 50 . . 309 1004 935 276 1656 5587 Cannons 10046 | . . . . . . 163 1151 1192 2479 68 209 2323 128 31 . 612 859 291 37 122 381 Explosions 21126 | . 92 348 499 . . 215 2118 2885 3641 474 280 1702 393 . . 665 313 550 1308 . 5643 Melee . | . . . . . . . . . . . . . . . . . . . . . . Ramming 294 | . 11 11 . 3 . . . 18 69 . . 66 . . . . 63 . . . 53 Kinetic 18513 | . 105 . . . . . 46 390 1823 . . 4659 50 . . 643 1772 1155 313 1778 5779 Thermal 13054 | . 164 . 153 . . 378 2677 2632 2825 68 209 2110 186 31 . 278 91 71 582 . 599 Explosive 10434 | . . 348 346 . . . 712 989 1804 474 280 1326 89 . . 665 313 550 . . 2538 Electromagnetic 8832 | . 884 28 1058 . . . 981 1369 559 . . 286 246 . . . . . 726 . 2695 Impact . | . . . . . . . . . . . . . . . . . . . . . . Slashing . | . . . . . . . . . . . . . . . . . . . . . . Piercing . | . . . . . . . . . . . . . . . . . . . . . . Highest Corruption 66 | . 4 18 . . . 14 . 17 2 2 2 3 . . . . . . 2 11 66 Average Corruption 3 | . 3 4 . . . 8 . 10 1 2 2 2 . . . . . . 2 3 6 Corruption Purged 25 | . . . . . . . . . . . . 3 . . . . . . . 22 . Corruption Blocked . | . . . . . . . . . . . . . . . . . . . . . . Effects 151 | . 22 16 . . . 1 . 2 22 9 9 26 . . . . . . 2 13 29 Message Errors 35 | . 3 4 . . . . . . 5 2 3 10 . . . . . . 1 2 5 Matter Fused 29 | . 4 1 . . . . . 1 4 1 2 4 . . . . . . . 5 7 Heat Flow Errors 23 | . 5 3 . . . . . 1 4 3 2 3 . . . . . . . 1 1 Energy Discharges 16 | . 2 1 . . . 1 . . 2 1 . 3 . . . . . . . 3 3 Parts Rejected 2 | . 1 1 . . . . . . . . . . . . . . . . . . . Data Loss (minor) 17 | . 3 3 . . . . . . 4 1 1 1 . . . . . . . 1 3 Data Loss (major) 5 | . 1 1 . . . . . . . . 1 1 . . . . . . . . 1 Misfires 8 | . . 1 . . . . . . 1 1 . 1 . . . . . . 1 1 2 Alerts 3 | . 1 1 . . . . . . . . . 1 . . . . . . . . . Misdirections 3 | . . . . . . . . . . . . . . . . . . . . . 3 Weapon Failures 10 | . 2 . . . . . . . 2 . . 2 . . . . . . . . 4 Overload Shots 1 | . . . . . . . . 1 . . . . . . . . . . . . . Overflow Damage 1399 | . 5 53 42 . . 72 383 112 225 3 . 77 65 . . 48 43 151 17 . 103 Projectiles 419 | . . . . . . 38 243 43 . . . 48 36 . . . 11 . . . . Explosions 967 | . 5 53 42 . . 34 140 69 221 3 . 27 29 . . 48 25 151 17 . 103 Melee 13 | . . . . . . . . . 4 . . 2 . . . . 7 . . . . Knockbacks 22 | . . . . . . . . . 12 . . 4 . . . . 3 3 . . . Impact 2 | . . . . . . . . . 1 . . . . . . . 1 . . . . Kinetic 17 | . . . . . . . . . 9 . . 3 . . . . 2 3 . . . Secondary 3 | . . . . . . . . . 2 . . 1 . . . . . . . . . Self-Inflicted Damage 1228 | . 61 28 147 . . . 119 92 276 85 . 64 . . . . . 5 . . 351 Shots 38 | . 2 3 4 . . . 4 5 4 2 . 3 . . . . . 1 . . 10 Rammed 14 | . 1 1 . 1 . . . 2 4 . . 3 . . . . 1 . . . 1 Targets Rammed 18 | . 1 1 . 1 . . . 2 5 . . 4 . . . . 2 . . . 2 Kicked . | . . . . . . . . . . . . . . . . . . . . . . Crushed 4 | . . . . . . . . . 1 . . 1 . . . . 1 . . . 1 Highest Temperature 312 | . 280 270 20 . . . 132 158 237 312 234 305 . . . 68 191 309 . 118 272 Average Temperature 72 | . 90 88 5 . . . 42 31 47 137 98 97 . . . 25 63 61 . 60 71 Received Heat Transfer 3732 | . 303 . 150 . . 9 206 360 460 . 33 919 . 12 . 69 189 56 . . 966 Effects 9 | . . . . . . . . . 1 2 . 5 . . . . . . . . 1 Energy Bleed 3 | . . . . . . . . . 1 . . 2 . . . . . . . . . Interference 6 | . . . . . . . . . . 2 . 3 . . . . . . . . 1 Siege Activations . | . . . . . . . . . . . . . . . . . . . . . . Martial Activations . | . . . . . . . . . . . . . . . . . . . . . . Shielding Activations . | . . . . . . . . . . . . . . . . . . . . . . Robots Disrupted . | . . . . . . . . . . . . . . . . . . . . . . Combat Hostiles . | . . . . . . . . . . . . . . . . . . . . . . Robots Corrupted 20 | . . . 1 . . . 3 3 . . . 1 . . . . . . 6 . 6 Combat Hostiles 16 | . . . . . . . 3 3 . . . . . . . . . . 5 . 5 Parts Fried 44 | . 5 . 5 . . . 9 5 . . . 4 3 . . . . . 5 . 8 Impact Corruptions 3 | . . . . . . . . . 1 . . 1 . . . . 1 . . . . Robots Melted 8 | . . . . . . . 2 . 3 . . 3 . . . . . . . . . Combat Hostiles 7 | . . . . . . . 2 . 3 . . 2 . . . . . . . . . Parts Melted 32 | . . . . . . . 3 3 7 1 2 16 . . . . . . . . . Heat Transferred 19181 | . 425 . 150 . . 400 2552 3660 3268 160 800 5930 250 50 . 400 150 160 350 . 476 Parts Sabotaged . | . . . . . . . . . . . . . . . . . . . . . . Parts Stolen . | . . . . . . . . . . . . . . . . . . . . . . Parts Stripped . | . . . . . . . . . . . . . . . . . . . . . . Power Chain Reactions 26 | . 3 . 5 . . . 5 5 1 . . . 1 . . . . . 2 . 4 Alert | -11 -10 -10 -9 -9 -9 -8 -8 -8 -7 -7 -7 -6 -6 -6 -6 -5 -5 -5 -5 -5 -5 ------- Run | Yrd Mat Min Mat Min Exi Min Mat Sto Fac Low Low Fac Low Low Dat Pro Fac Ext Cet Arc Hub Maximum Alert Level 5 | . 1 . 1 . . . 2 3 4 . . 4 . . . . 1 2 2 2 5 Low Security (%) 40 | 100 48 100 77 100 . 100 56 . . . . 16 . . . . 88 71 . . 6 Level 1 17 | . 51 . 22 . . . 9 9 16 . . 20 . . . . 11 2 7 84 9 Level 2 18 | . . . . . . . 33 37 6 . . 33 . . . . . 25 92 15 4 Level 3 12 | . . . . . . . . 52 28 . . 20 . . . . . . . . 9 Level 4 8 | . . . . . . . . . 49 . . 9 . . . . . . . . 23 Level 5 1 | . . . . . . . . . . . . . . . . . . . . . 28 High Security 1 | . . . . . . . . . . . . . . . . . . . . . 17 Max Security . | . . . . . . . . . . . . . . . . . . . . . . Peak Influence 2402 | . 318 147 272 84 . 65 577 927 1512 . . 1261 . . . . 239 565 698 422 2402 Initial 417 | . . 87 . 84 . . . 221 417 . . 322 . . . . . 42 296 249 97 Average 444 | . 163 67 111 19 . 10 245 671 990 . . 569 . . . . 85 148 550 354 1302 Influence Increases 13536 | . 649 170 698 . . 73 983 1448 1779 160 90 1756 120 . . 230 412 1016 538 372 3042 Destroy 0b10 Robot/C 6640 | . 380 100 380 . . 40 480 860 940 140 80 980 100 . . 200 220 480 220 80 960 Destroy 0b10 Robot/NC 705 | . 25 10 45 . . . 70 80 115 . . 110 . . . . 15 50 10 45 130 Destroy Leader 1466 | . 78 20 112 . . 10 130 218 238 20 10 256 20 . . 30 64 66 10 . 184 Allied During Kill 984 | . . . . . . . . 22 . . . . . . . . . 283 240 117 322 Successful Hack 262 | . 15 . 23 . . . 20 41 42 . . 53 . . . . 50 18 . . . Select Force Hacks 110 | . 60 . . . . . . . . . . . . . . . . . . . 50 Disable Machine 1080 | . . . 60 . . . 135 105 105 . . 105 . . . . 15 15 . 60 480 Anti-Garrison Action 300 | . . . . . . . . . 150 . . . . . . . . . . . 150 Destroy Structure 1644 | . 16 40 63 . . 8 148 122 129 . . 162 . . . . 48 104 58 70 676 Partial Spotted 15 | . . . 15 . . . . . . . . . . . . . . . . . . Lose Combat Pursuer 330 | . 75 . . . . 15 . . 60 . . 90 . . . . . . . . 90 Influence Decreases 11259 | . 425 394 480 218 . 73 459 1054 1203 848 384 1008 1003 334 43 230 326 573 443 717 1044 Entered New Map 3389 | . . 137 . 134 . . . 303 501 554 154 190 467 72 43 . . 44 233 375 182 Time Decay 6593 | . 385 257 450 84 . 73 439 571 592 294 230 708 526 262 . 230 316 342 170 302 362 Lost Part 650 | . 40 . 30 . . . 20 10 100 . . 90 10 . . . 10 . . . 340 Lost Ally 398 | . . . . . . . . 20 10 . . 20 . . . . . 108 40 40 160 Purge Threat 229 | . . . . . . . . 150 . . . . . . . . . 79 . . . Squads Dispatched 90 | . 4 . 2 . . . 6 8 19 . . 22 . . . . 7 2 1 . 19 Investigation 20 | . 3 . 1 . . . 2 2 4 . . 5 . . . . . . 1 . 2 Extermination 10 | . . . . . . . . . 3 . . 4 . . . . 2 . . . 1 Reinforcement 23 | . 1 . 1 . . . 2 1 5 . . 5 . . . . 2 2 . . 4 Assault 19 | . . . . . . . 1 4 3 . . 2 . . . . . . . . 9 Garrison 18 | . . . . . . . 1 1 4 . . 6 . . . . 3 . . . 3 Intercept . | . . . . . . . . . . . . . . . . . . . . . . Searches Triggered . | . . . . . . . . . . . . . . . . . . . . . . Data Miner Redirects 1 | . . . . . . . . . . . . . . . . . . . . . 1 Construction Impeded 8 | . . . . . . . . . 2 . . 2 . . . . . 2 . . 2 Haulers Reinforced 3 | . . . . . . . . . 1 . . 1 . . . . 1 . . . . Active Scanning Responses . | . . . . . . . . . . . . . . . . . . . . . . Cargo Convoy Interrupts 1 | . . . . . . . . . 1 . . . . . . . . . . . . Stealth | -11 -10 -10 -9 -9 -9 -8 -8 -8 -7 -7 -7 -6 -6 -6 -6 -5 -5 -5 -5 -5 -5 --------- Run | Yrd Mat Min Mat Min Exi Min Mat Sto Fac Low Low Fac Low Low Dat Pro Fac Ext Cet Arc Hub Distress Signals 30 | . 3 . 2 . . . 4 4 3 . . 8 . . . . 1 2 2 . 1 Communications Jammed 3 | . . . . . . . . . . . . . . . . . . . . . 3 Distress Signals . | . . . . . . . . . . . . . . . . . . . . . . Times Spotted 489 | . 32 5 29 . . 3 26 58 78 6 5 73 5 1 . 9 15 22 10 17 95 Peak Tracking Total 18 | . 6 3 4 . . 1 4 9 12 4 2 7 3 1 . 5 4 5 5 2 18 Tactical Retreats 13 | . 2 . . . . 1 . . 1 . . 4 . . . . . . . . 5 Traps | -11 -10 -10 -9 -9 -9 -8 -8 -8 -7 -7 -7 -6 -6 -6 -6 -5 -5 -5 -5 -5 -5 ------- Run | Yrd Mat Min Mat Min Exi Min Mat Sto Fac Low Low Fac Low Low Dat Pro Fac Ext Cet Arc Hub Traps Triggered 18 | . 2 . 3 . . . 2 5 4 . . 1 . . . . 1 . . . . Indirectly 5 | . . . . . . . . 2 3 . . . . . . . . . . . . Trap Hack Attempts . | . . . . . . . . . . . . . . . . . . . . . . Triggered . | . . . . . . . . . . . . . . . . . . . . . . Disarmed 2 | . . . . . . . . . . . . 2 . . . . . . . . . Reprogrammed . | . . . . . . . . . . . . . . . . . . . . . . Reused . | . . . . . . . . . . . . . . . . . . . . . . Traps Extracted . | . . . . . . . . . . . . . . . . . . . . . . Installed . | . . . . . . . . . . . . . . . . . . . . . . Triggered . | . . . . . . . . . . . . . . . . . . . . . . Machines | -11 -10 -10 -9 -9 -9 -8 -8 -8 -7 -7 -7 -6 -6 -6 -6 -5 -5 -5 -5 -5 -5 ---------- Run | Yrd Mat Min Mat Min Exi Min Mat Sto Fac Low Low Fac Low Low Dat Pro Fac Ext Cet Arc Hub Machines Disabled 74 | . . . 4 . . . 9 7 8 . . 7 . . . . 1 1 . 4 33 Max in Single Turn 12 | . . . 2 . . . 2 3 2 . . 4 . . . . 1 . . 1 12 Garrison Access 5 | . . . . . . . 1 . 1 . . 1 . . . . 1 . . . 1 Network Hub 3 | . . . . . . . . . . . . . . . . . . . . . 3 Machines Repaired . | . . . . . . . . . . . . . . . . . . . . . . Machines Dismantled . | . . . . . . . . . . . . . . . . . . . . . . Machines Sabotaged 1 | . . . . . . . . . . . . . . . . . . . . . 1 Overloaded Fab Kills . | . . . . . . . . . . . . . . . . . . . . . . Hacking | -11 -10 -10 -9 -9 -9 -8 -8 -8 -7 -7 -7 -6 -6 -6 -6 -5 -5 -5 -5 -5 -5 --------- Run | Yrd Mat Min Mat Min Exi Min Mat Sto Fac Low Low Fac Low Low Dat Pro Fac Ext Cet Arc Hub Machines Accessed 80 | . 9 . 7 . 2 . 5 11 12 . . 14 1 . 3 . 9 3 1 . 3 Terminals 48 | . 6 . 5 . . . 3 8 6 . . 6 . . . . 8 3 1 . 2 Fabricators 5 | . . . . . . . . . 4 . . 1 . . . . . . . . . Repair Stations 8 | . 1 . 1 . . . 1 2 1 . . 2 . . . . . . . . . Recycling Units 2 | . 2 . . . . . . . . . . . . . . . . . . . . Scanalyzers 4 | . . . 1 . . . . . 1 . . 2 . . . . . . . . . Garrison Access 7 | . . . . . . . 1 1 . . . 3 . . . . 1 . . . 1 Total Hacks 251 | . 26 . 25 . 2 . 14 45 30 . . 52 1 . 20 . 21 6 2 . 7 Successful 126 | . 11 . 14 . 2 . 6 22 15 . . 25 1 . 20 . 7 2 . . 1 Failed 123 | . 14 . 10 . . . 8 23 15 . . 27 . . . . 14 4 2 . 6 Catastrophic 23 | . 3 . . . . . . 2 6 . . 4 . . . . 4 2 1 . 1 Database Lockouts 2 | . 1 . 1 . . . . . . . . . . . . . . . . . . Manual 107 | . 19 . 18 . 1 . 6 15 11 . . 21 . . . . 9 2 1 . 4 Terminals 154 | . 18 . 19 . . . 8 34 15 . . 30 . . . . 18 6 2 . 4 Fabricators 14 | . . . . . . . . . 12 . . 2 . . . . . . . . . Repair Stations 28 | . 4 . 4 . . . 2 8 2 . . 8 . . . . . . . . . Recycling Units 4 | . 4 . . . . . . . . . . . . . . . . . . . . Scanalyzers 8 | . . . 2 . . . . . 1 . . 5 . . . . . . . . . Garrison Access 20 | . . . . . . . 4 3 . . . 7 . . . . 3 . . . 3 Terminal Hacks 58 | . 3 . 4 . 2 . 1 11 3 . . 7 1 . 20 . 4 2 . . . Record 3 | . . . . . 1 . . . . . . . . . 2 . . . . . . Part Schematic 19 | . . . 1 . . . 1 2 1 . . 1 . . 10 . 2 1 . . . Robot Schematic 6 | . . . . . . . . 1 . . . . . . 5 . . . . . . Robot Analysis 8 | . 1 . 2 . . . . 3 1 . . 1 . . . . . . . . . Prototype ID Bank 7 | . . . 1 . . . . 2 . . . 1 . . 3 . . . . . . Open Door 4 | . . . . . . . . 2 . . . . 1 . . . 1 . . . . Branch Access Points 2 | . . . . . . . . . 1 . . 1 . . . . . . . . . Unreport Threat 2 | . . . . . . . . 1 . . . . . . . . . 1 . . . Locate Traps 2 | . . . . . . . . . . . . 2 . . . . . . . . . Disarm Traps 1 | . . . . . . . . . . . . 1 . . . . . . . . . Zone Layout 3 | . 2 . . . . . . . . . . . . . . . 1 . . . . Proto ID Catalog 1 | . . . . . 1 . . . . . . . . . . . . . . . . Fabricator Hacks 7 | . . . . . . . . . 5 . . 2 . . . . . . . . . Network Status 1 | . . . . . . . . . 1 . . . . . . . . . . . . Load Schematic 3 | . . . . . . . . . 2 . . 1 . . . . . . . . . Build 3 | . . . . . . . . . 2 . . 1 . . . . . . . . . Repair Station Hacks 25 | . 4 . 4 . . . 1 8 2 . . 6 . . . . . . . . . Scan Component 13 | . 2 . 2 . . . 1 4 1 . . 3 . . . . . . . . . Repair 12 | . 2 . 2 . . . . 4 1 . . 3 . . . . . . . . . Recycling Unit Hacks . | . . . . . . . . . . . . . . . . . . . . . . Scanalyzer 6 | . . . 2 . . . . . . . . 4 . . . . . . . . . Insert Component 3 | . . . 1 . . . . . . . . 2 . . . . . . . . . Analyze 3 | . . . 1 . . . . . . . . 2 . . . . . . . . . Garrison Access Hacks 3 | . . . . . . . 1 . . . . 1 . . . . 1 . . . . Seal Access 3 | . . . . . . . 1 . . . . 1 . . . . 1 . . . . Unauthorized Hacks 27 | . 4 . 4 . . . 3 3 5 . . 5 . . . . 2 . . . 1 Terminals 23 | . 2 . 4 . . . 3 3 3 . . 5 . . . . 2 . . . 1 Track 1 | . . . . . . . . . . . . 1 . . . . . . . . . Assimilate 4 | . . . . . . . 1 . 1 . . 1 . . . . 1 . . . . Botnet 15 | . 2 . 3 . . . 2 3 2 . . 2 . . . . 1 . . . . Disrupt 1 | . . . . . . . . . . . . 1 . . . . . . . . . Operators 1 | . . . 1 . . . . . . . . . . . . . . . . . . Sabotage 1 | . . . . . . . . . . . . . . . . . . . . . 1 Fabricators 2 | . . . . . . . . . 2 . . . . . . . . . . . . Prioritize 1 | . . . . . . . . . 1 . . . . . . . . . . . . Haulers 1 | . . . . . . . . . 1 . . . . . . . . . . . . Repair Stations . | . . . . . . . . . . . . . . . . . . . . . . Recycling Units 2 | . 2 . . . . . . . . . . . . . . . . . . . . Tunnel 2 | . 2 . . . . . . . . . . . . . . . . . . . . Scanalyzers . | . . . . . . . . . . . . . . . . . . . . . . Garrison Access . | . . . . . . . . . . . . . . . . . . . . . . Data Cores Recovered 1 | . . . . . . . . . . . . . . . . . . . . . 1 Used 1 | . . . . . . . . . . . . . . . . . . . . . 1 Hacking Detections 65 | . 6 . 6 . . . 5 10 11 . . 13 . . . . 8 3 1 . 2 Full Trace Events 20 | . 3 . 2 . . . 1 3 4 . . 5 . . . . . . 1 . 1 Feedback Events 2 | . . . . . . . . . 1 . . . . . . . . . . . 1 Corruption 2 | . . . . . . . . . 1 . . . . . . . . . . . 1 Feedback Blocked . | . . . . . . . . . . . . . . . . . . . . . . Robot Schematics Acquired 6 | . . . . . . . . 1 . . . . . . 5 . . . . . . Robots Built . | . . . . . . . . . . . . . . . . . . . . . . Authchips . | . . . . . . . . . . . . . . . . . . . . . . Time . | . . . . . . . . . . . . . . . . . . . . . . Total Robot Build Rating . | . . . . . . . . . . . . . . . . . . . . . . Part Schematics Acquired 21 | . . . 2 . . . 1 2 1 . . 2 . . 10 . 2 1 . . . Parts Built 6 | . . . . . . . . . 4 . . 2 . . . . . . . . . Authchips . | . . . . . . . . . . . . . . . . . . . . . . Time 119 | . . . . . . . . . 83 . . 36 . . . . . . . . . Total Part Build Rating 22 | . . . . . . . . . 16 . . 6 . . . . . . . . . Part Studies Acquired . | . . . . . . . . . . . . . . . . . . . . . . Parts Repaired 12 | . 2 . 2 . . . . 4 1 . . 3 . . . . . . . . . Time 382 | . 52 . 52 . . . . 126 26 . . 126 . . . . . . . . . Parts Recycled . | . . . . . . . . . . . . . . . . . . . . . . Recycled Matter . | . . . . . . . . . . . . . . . . . . . . . . Retrieved Matter . | . . . . . . . . . . . . . . . . . . . . . . Retrieved Components . | . . . . . . . . . . . . . . . . . . . . . . Parts Scanalyzed 3 | . . . 1 . . . . . . . . 2 . . . . . . . . . Part Schematics Acquired 2 | . . . 1 . . . . . . . . 1 . . . . . . . . . Parts Damaged . | . . . . . . . . . . . . . . . . . . . . . . Bothacking | -11 -10 -10 -9 -9 -9 -8 -8 -8 -7 -7 -7 -6 -6 -6 -6 -5 -5 -5 -5 -5 -5 ------------ Run | Yrd Mat Min Mat Min Exi Min Mat Sto Fac Low Low Fac Low Low Dat Pro Fac Ext Cet Arc Hub Used RIF Installer . | . . . . . . . . . . . . . . . . . . . . . . Robots Hacked 4 | . . . . . 4 . . . . . . . . . . . . . . . . Non-combat 3 | . . . . . 3 . . . . . . . . . . . . . . . . Combat 1 | . . . . . 1 . . . . . . . . . . . . . . . . Robot Hacks Applied 4 | . . . . . 4 . . . . . . . . . . . . . . . . parse_system 4 | . . . . . 4 . . . . . . . . . . . . . . . . Relay Couplers Released 3 | . . . . . . . . . 2 . . . . . . . . . . . 1 Machine Destruction 3 | . . . . . . . . . 2 . . . . . . . . . . . 1 Fabnet Peak Effective % . | . . . . . . . . . . . . . . . . . . . . . . Robots Rewired 6 | . . . . . . . . . . . . . . . . . . 6 . . . Allies Hacked . | . . . . . . . . . . . . . . . . . . . . . . Hacks Repelled . | . . . . . . . . . . . . . . . . . . . . . . Allies | -11 -10 -10 -9 -9 -9 -8 -8 -8 -7 -7 -7 -6 -6 -6 -6 -5 -5 -5 -5 -5 -5 -------- Run | Yrd Mat Min Mat Min Exi Min Mat Sto Fac Low Low Fac Low Low Dat Pro Fac Ext Cet Arc Hub Total Allies 26 | . . . . . . . . 2 1 . 1 . . . . . . 17 5 . . Largest Group 14 | . . . . . . . . 2 1 . 1 . . . . . . 11 14 14 9 Highest-Rated Group 844 | . . . . . . . . 62 10 . 135 . . . . . . 420 844 844 598 Highest-Rated Ally 159 | . . . . . . . . 31 10 . 135 . . . . . . 159 159 159 96 Total Orders 11 | . . . . . . . . . . . 3 7 . . . . . . . 1 . STAY 1 | . . . . . . . . . . . . . . . . . . . . 1 . EXPLORE 5 | . . . . . . . . . . . 2 3 . . . . . . . . . RETURN 5 | . . . . . . . . . . . 1 4 . . . . . . . . . Ally Attacks 194 | . . . . . . . . 8 . . . . . . . . . 92 27 23 44 Total Damage 5482 | . . . . . . . . 166 . . . . . . . . . 2214 709 784 1609 Kills 38 | . . . . . . . . 2 . . . . . . . . . 16 5 4 11 Allies Corrupted 2 | . . . . . . . . . . . . . . . . . . . . . 2 Allies Melted . | . . . . . . . . . . . . . . . . . . . . . . Intel | -11 -10 -10 -9 -9 -9 -8 -8 -8 -7 -7 -7 -6 -6 -6 -6 -5 -5 -5 -5 -5 -5 ------- Run | Yrd Mat Min Mat Min Exi Min Mat Sto Fac Low Low Fac Low Low Dat Pro Fac Ext Cet Arc Hub Active Infowar (turns) 5523 | . . . . . . . . 1 1642 . . 120 1438 568 132 744 588 251 . . 39 IFF 3009 | . . . . . . . . . . . . 1 1438 568 132 744 126 . . . . Machine Analysis 1643 | . . . . . . . . 1 1642 . . . . . . . . . . . . Jamming 871 | . . . . . . . . . . . . 119 . . . . 462 251 . . 39 Robot Analysis Total 8 | . 1 . 2 . . . . 3 1 . . 1 . . . . . . . . . Derelict Logs Recovered 10 | . . 1 . 3 . . . . . 1 . . 3 1 . 1 . . . . . Drone Launches 7 | . . . . . . . . . . . 2 5 . . . . . . . . . Drone Recoveries 5 | . . . . . . . . . . . 2 3 . . . . . . . . . Exploration | -11 -10 -10 -9 -9 -9 -8 -8 -8 -7 -7 -7 -6 -6 -6 -6 -5 -5 -5 -5 -5 -5 ------------- Run | Yrd Mat Min Mat Min Exi Min Mat Sto Fac Low Low Fac Low Low Dat Pro Fac Ext Cet Arc Hub Turns Passed 22022 | 79 1156 612 1286 412 807 642 1254 1735 1863 659 488 3146 1470 568 132 892 1368 1439 340 679 995 Spaces Moved 10469 | 46 556 363 615 257 368 262 613 578 798 294 231 1457 759 342 81 502 736 779 171 331 330 Core 4 | 4 . . . . . . . . . . . . . . . . . . . . . Treads 10465 | 42 556 363 615 257 368 262 613 578 798 294 231 1457 759 342 81 502 736 779 171 331 330 Legs . | . . . . . . . . . . . . . . . . . . . . . . Wheels . | . . . . . . . . . . . . . . . . . . . . . . Hover . | . . . . . . . . . . . . . . . . . . . . . . Flight . | . . . . . . . . . . . . . . . . . . . . . . Fastest Speed 50 | 50 160 160 160 160 160 240 160 160 161 163 163 160 165 165 165 163 160 160 160 160 160 Average Speed 171 | 150 160 160 160 160 215 240 160 216 164 216 192 164 165 165 165 163 161 160 160 160 164 Slowest Speed 244 | 160 160 160 240 160 240 240 160 242 244 243 243 243 165 165 165 165 240 161 160 160 240 Overloaded Moves . | . . . . . . . . . . . . . . . . . . . . . . Propulsion Burnouts . | . . . . . . . . . . . . . . . . . . . . . . Robots Hopped . | . . . . . . . . . . . . . . . . . . . . . . Potential Cave-ins . | . . . . . . . . . . . . . . . . . . . . . . Cave-ins Triggered . | . . . . . . . . . . . . . . . . . . . . . . Exploration Rate (%) 58 | 3 92 79 65 69 66 74 59 86 24 47 22 55 74 54 69 61 19 86 56 89 39 Regions Visited 21 Branch Regions 15 Pre-discovered Areas 6 | . 2 . . 2 1 . . . . . . . . . 1 . . . . . . Known Exits Taken 6 | . . . . . . . 1 . 1 1 . 1 1 . . . 1 . . . . Unknown Exits Taken 15 | 1 1 1 1 1 1 1 . 1 . . 1 . . 1 1 1 . 1 1 1 . Scrap Searched 14 | . . 1 . 1 . 1 . . . . 3 . 7 1 . . . . . . . Spaces Dug 158 | . . 11 . . . . . . 8 22 . 63 12 . . 18 3 21 . . . Terrain Destroyed 1715 | . 13 54 58 . . 14 193 142 136 60 29 182 23 . . 52 42 117 38 43 519 Melee . | . . . . . . . . . . . . . . . . . . . . . . Projectile 289 | . . . . . . . 2 1 32 2 2 51 7 . . 8 27 35 8 43 71 AOE 1424 | . 13 54 58 . . 14 191 141 104 58 27 131 16 . . 44 15 82 30 . 446 Terrain Rammed . | . . . . . . . . . . . . . . . . . . . . . . Walls Destroyed . | . . . . . . . . . . . . . . . . . . . . . . Machines Disabled . | . . . . . . . . . . . . . . . . . . . . . . Actions | -11 -10 -10 -9 -9 -9 -8 -8 -8 -7 -7 -7 -6 -6 -6 -6 -5 -5 -5 -5 -5 -5 --------- Run | Yrd Mat Min Mat Min Exi Min Mat Sto Fac Low Low Fac Low Low Dat Pro Fac Ext Cet Arc Hub Total 13026 | 53 708 379 821 257 382 268 778 919 1141 307 263 1914 959 344 80 536 841 918 219 414 525 Wait 948 | . 61 . 102 . . . 52 176 113 . 17 146 173 . . 4 23 22 15 25 19 Move 10448 | 45 555 362 614 256 367 261 612 577 797 293 230 1456 758 341 80 501 735 778 170 330 330 Hop . | . . . . . . . . . . . . . . . . . . . . . . Pick Up 155 | 2 15 1 15 . 2 . 12 19 25 . . 24 4 . . . 11 6 5 5 9 Fast Attach 89 | 6 3 1 11 . 1 . 8 6 10 . 2 16 1 1 . . 3 4 2 5 9 Attach 80 | . 4 . 4 . 2 . 4 7 18 . . 10 2 . . 3 5 1 1 3 16 Detach 12 | . . . . . . . 2 . 8 . . . . . . . . . . 1 1 Swap 221 | . 4 5 14 . 2 5 12 17 28 6 1 48 5 . . 8 18 16 1 7 24 Drop 193 | . 3 . 12 . 4 . 19 24 23 . 2 41 5 1 . . 12 16 10 11 10 Fire 801 | . 62 9 49 . . 2 57 85 114 8 11 169 11 1 . 20 32 24 15 27 105 Melee 4 | . . . . . 4 . . . . . . . . . . . . . . . . Ram . | . . . . . . . . . . . . . . . . . . . . . . Kick . | . . . . . . . . . . . . . . . . . . . . . . Crush 18 | . 1 1 . 1 . . . 2 5 . . 4 . . . . 2 . . . 2 Escape Stasis 8 | . . . . . . . . 6 . . . . . . . . . 2 . . . Rewire 49 | . . . . . . . . . . . . . . . . . . 49 . . . Trap . | . . . . . . . . . . . . . . . . . . . . . . Miscellaneous . | . . . . . . . . . . . . . . . . . . . . . . Route ------- -11/Scrapyard -10/Materials (discovered 5 exits: *Mat x3 / [*Min] / [*Sub]) -10/Mines -9/Materials (discovered 2 exits: *Mat / [*Min]) -9/Mines (discovered 3 exits: *Mat x2 / *Exi) -9/Exiles -8/Mines -8/Materials (discovered 3 exits: *Fac x2 / *Sto) -8/Storage -7/Factory (discovered 2 exits: *Low x2) -7/Lower Caves -7/Lower Caves (discovered 2 exits: *Fac x2) -6/Factory (discovered 3 exits: *Fac / *Low x2) -6/Lower Caves -6/Lower Caves (discovered 2 exits: *Fac / *Dat) -6/Data Miner -5/Proximity Caves -5/Factory (discovered 3 exits: *Fac / Upp / *Ext) -5/Extension (discovered 2 exits: *Fac / *Cet) -5/Cetus (discovered 2 exits: *Fac / [*Arc]) -5/Archives (discovered 3 exits: *Fac / *Hub x2) -5/Hub_04(d) (discovered 2 exits: *Fac x2) History --------- Turn | Location | Event 10 | -11/Scrapyard | Discovered new exit (range 14) 80 | -11/Scrapyard | Entered Materials 203 | -10/Materials | Discovered new exit (range 7) 293 | -10/Materials | Discovered new exit (range 11) 316 | -10/Materials | Build established: Mutant 372 | -10/Materials | Central database locked down 546 | -10/Materials | Discovered new exit (range 13) 575 | -10/Materials | Discovered new exit (range 3) 826 | -10/Materials | Core integrity fell below 50% 861 | -10/Materials | Discovered new exit (range 10) 973 | -10/Materials | Repaired Lgt. Treads 1000 | -10/Materials | Repaired Lgt. Treads 1236 | -10/Materials | Entered Mines 1239 | -10/Mines | Met a Derelict bent on vengeance 1599 | -10/Mines | Learned Materials emergency access door positions 1605 | -10/Mines | Discovered new exit (range 15) 1846 | -10/Mines | System corruption reached 10% 1848 | -10/Mines | Entered Materials 1848 | -9/Materials | Evolved 2 slots: Propulsion x1, Utility x1 2198 | -9/Materials | Build established: Scavenger-Mutant 2401 | -9/Materials | Discovered new exit (range 15) 2404 | -9/Materials | Central database locked down 2565 | -9/Materials | Build established: Mutant 2983 | -9/Materials | Repaired Lgt. Treads 3010 | -9/Materials | Repaired Lgt. Treads 3053 | -9/Materials | Discovered new exit (range 10) 3134 | -9/Materials | Entered Mines 3146 | -9/Mines | Learned 4 Materials zone layouts 3236 | -9/Mines | Build established: Scavenger-Mutant 3240 | -9/Mines | Found a damaged Exp. Sensor Array with a note attached 3256 | -9/Mines | Discovered new exit (range 4) 3299 | -9/Mines | Learned location of Storage (-8) 3322 | -9/Mines | Learned location of 1 exit from Materials 3486 | -9/Mines | Discovered new exit (range 6) 3539 | -9/Mines | Deemed a non-threat by the Exiles lab entrance 3539 | -9/Mines | Discovered new exit (range 5) 3546 | -9/Mines | Entered Exiles 3585 | -9/Exiles | Met 8R-AWN 3614 | -9/Exiles | Met EX-HEX 3658 | -9/Exiles | Met EX-BIN 3678 | -9/Exiles | Aligned with FarCom system 3679 | -9/Exiles | Given EX-Vault access code 3716 | -9/Exiles | Opened EX-Vault 3730 | -9/Exiles | Found YOLO Cannon 3779 | -9/Exiles | Warned to stay clear of 0b10 Research branches 3849 | -9/Exiles | Met EX-DEC 3866 | -9/Exiles | Learned location of Zion (-7) 4315 | -9/Exiles | Discovered new exit (range 14) 4353 | -9/Exiles | Left Exiles lab with YOLO Cannon 4353 | -9/Exiles | Entered Mines 4596 | -8/Mines | Found a Scrap Suit stashed away for nefarious purposes 4964 | -8/Mines | Discovered new exit (range 9) 4992 | -8/Mines | System corruption reached 10% 4995 | -8/Mines | Entered Materials 4995 | -8/Materials | Evolved 2 slots: Propulsion x1, Utility x1 4996 | -8/Materials | Identified exit to Storage 5367 | -8/Materials | Discovered new exit (range 14) 5474 | -8/Materials | Garrison activated, responded to threat 6052 | -8/Materials | Discovered new exit (range 14) 6195 | -8/Materials | First assault squad dispatched 6249 | -8/Materials | Entered Storage 6262 | -8/Storage | Met a pair of Derelict thieves 6367 | -8/Storage | Destroyed 7 combat bots 6560 | -8/Storage | Repaired Lgt. Treads 6587 | -8/Storage | Repaired Lgt. Treads 6624 | -8/Storage | Repaired Corrupted Lgt. Treads 7143 | -8/Storage | Garrison activated, responded to threat 7455 | -8/Storage | Repaired Hardlight Generator 7849 | -8/Storage | First assault squad dispatched 7849 | -8/Storage | Discovered new exit (range 16) 7925 | -8/Storage | System corruption reached 10% 7935 | -8/Storage | Destroyed 8 combat bots 7984 | -8/Storage | Entered Factory 7984 | -7/Factory | Evolved 2 slots: Propulsion x2 8079 | -7/Factory | Fabricated Arm. Treads? 8212 | -7/Factory | Identified exit to Lower Caves 8375 | -7/Factory | Garrison activated, responded to threat 8459 | -7/Factory | Destroyed 11 combat bots 8558 | -7/Factory | YOLO Cannon suddenly exploded 8559 | -7/Factory | Core integrity fell below 50% 8598 | -7/Factory | Lost 7 parts (1p4n1u1w) 8711 | -7/Factory | Repaired Lgt. Treads 8784 | -7/Factory | First assault squad dispatched 8843 | -7/Factory | Build established: Mutant 9059 | -7/Factory | Fabricated Matter Compressor? 9072 | -7/Factory | Garrison activated, responded to threat 9655 | -7/Factory | Cargo convoy interrupted 9706 | -7/Factory | Found Prototype Launcher 9706 | -7/Factory | Identified Scatter Rocket Array 9715 | -7/Factory | Destroyed 8 combat bots 9718 | -7/Factory | Found Prototype Energy Cannon 9718 | -7/Factory | Identified Exp. Thermic Cannon 9847 | -7/Factory | Entered Lower Caves 9852 | -7/Lower Caves | Identified exit to Lower Caves 9857 | -7/Lower Caves | Entered a destroyed Warlord outpost 9955 | -7/Lower Caves | Build established: Scavenger-Mutant 10284 | -7/Lower Caves | Encountered a Warlord checkpoint 10506 | -7/Lower Caves | Entered another Lower Caves area 10506 | -7/Lower Caves | Discovered new exit (range 10) 10915 | -7/Lower Caves | Spotted B-75 Beast 10963 | -7/Lower Caves | AD-0RF showed up to help 10966 | -7/Lower Caves | AD-0RF revealed a hidden path 10994 | -7/Lower Caves | Entered Factory 10994 | -6/Factory | Evolved 2 slots: Power x1, Weapon x1 11382 | -6/Factory | Garrison activated, responded to threat 11509 | -6/Factory | Build established: Scavenger-Tank 11712 | -6/Factory | Spotted B-75 Beast 11805 | -6/Factory | Destroyed B-75 Beast 11877 | -6/Factory | Garrison activated, responded to threat 11900 | -6/Factory | Destroyed 8 combat bots 12123 | -6/Factory | Garrison activated, responded to threat 12407 | -6/Factory | Build established: Scavenger-Skirmisher 12500 | -6/Factory | Lost 3 parts (1p1n1u) 12648 | -6/Factory | Repaired Arm. Treads 12687 | -6/Factory | Repaired Arm. Treads 12738 | -6/Factory | Repaired Imp. Medium Treads? 12744 | -6/Factory | First assault squad dispatched 12987 | -6/Factory | Fabricated Arm. Treads (x2) 13116 | -6/Factory | Discovered new exit (range 34) 13130 | -6/Factory | Identified exit to Lower Caves 13505 | -6/Factory | Build established: Skirmisher 13798 | -6/Factory | Lost 3 parts (2u1w) 14053 | -6/Factory | Garrison activated, responded to threat 14140 | -6/Factory | Entered Lower Caves 14280 | -6/Lower Caves | Identified exit to Lower Caves 14315 | -6/Lower Caves | Entered a destroyed Warlord outpost 14319 | -6/Lower Caves | Learned location of 1 exit from Factory 14439 | -6/Lower Caves | Build established: Gunner 15610 | -6/Lower Caves | Entered another Lower Caves area 15620 | -6/Lower Caves | Discovered new exit (range 16) 16025 | -6/Lower Caves | Discovered new exit (range 8) 16115 | -6/Lower Caves | Spotted B-75 Beast 16178 | -6/Lower Caves | Entered Data Miner 16178 | -6/Data Miner | Discovered new exit (range 6) 16210 | -6/Data Miner | Met Data Miner 16243 | -6/Data Miner | Learned location of Section 7 (-2) 16243 | -6/Data Miner | Acquired the access code to Warlord's prototype stash 16266 | -6/Data Miner | Received God Mode back door access code from Data Miner 16310 | -6/Data Miner | Entered Proximity Caves 16405 | -5/Proximity Caves | Spotted B-75 Beast 16434 | -5/Proximity Caves | Destroyed B-75 Beast 16556 | -5/Proximity Caves | Learned location of 1 exit from Factory 16840 | -5/Proximity Caves | Attracted the attention of an 0b10 checkpoint 16955 | -5/Proximity Caves | Discovered new exit (range 10) 17202 | -5/Proximity Caves | Entered Factory 17202 | -5/Factory | Evolved 2 slots: Weapon x2 17203 | -5/Factory | Identified exit to Extension 17204 | -5/Factory | Identified exit to Factory 17204 | -5/Factory | Identified exit to Upper Caves 17678 | -5/Factory | Build established: Skirmisher 17783 | -5/Factory | Garrison activated, responded to threat 17885 | -5/Factory | Found Prototype Launcher 17885 | -5/Factory | Identified Mni. Smartbomb Launcher 18269 | -5/Factory | Build established: Scavenger-Skirmisher 18570 | -5/Factory | Entered Extension 18631 | -5/Extension | Rescued A7 18948 | -5/Extension | Rescued a captive Derelict 19026 | -5/Extension | Rescued a captive Derelict 19026 | -5/Extension | Rescued a captive Derelict 19039 | -5/Extension | Rescued a captive Derelict 19256 | -5/Extension | Spotted B-75 Beast 19272 | -5/Extension | Destroyed B-75 Beast 19322 | -5/Extension | Lost 5 allies 19680 | -5/Extension | Rescued a captive Derelict 19681 | -5/Extension | Rescued a captive Derelict 19771 | -5/Extension | Rescued a captive Derelict 19776 | -5/Extension | Rescued a captive Derelict 19875 | -5/Extension | Rescued a captive Derelict 19875 | -5/Extension | Rescued a captive Derelict 19958 | -5/Extension | Discovered exit to Factory (range 10) 19959 | -5/Extension | Discovered new exit (range 6) 20009 | -5/Extension | Entered Cetus 20009 | -5/Cetus | Accompanied by 11 allies (A7) 20014 | -5/Cetus | Acquired a Cetus Manufacturing Module code from A7 20030 | -5/Cetus | Spotted Cetus Guard 20030 | -5/Cetus | Spotted Cetus Guard 20033 | -5/Cetus | Spotted Cetus Guard 20034 | -5/Cetus | Spotted Cetus Guard 20036 | -5/Cetus | Allies destroyed Cetus Guard 20036 | -5/Cetus | Destroyed Cetus Guard 20039 | -5/Cetus | Destroyed Cetus Guard 20046 | -5/Cetus | Destroyed Cetus Guard 20145 | -5/Cetus | Started Cetus Manufacturing Module 20164 | -5/Cetus | Discovered new exit (range 15) 20170 | -5/Cetus | Manufactured an Enhanced Grunt 20192 | -5/Cetus | Spotted Cetus Guard 20193 | -5/Cetus | Spotted Cetus Guard 20195 | -5/Cetus | Manufactured an Enhanced Grunt 20195 | -5/Cetus | Allies destroyed Cetus Guard 20195 | -5/Cetus | Spotted Cetus Guard 20197 | -5/Cetus | Spotted Cetus Guard 20199 | -5/Cetus | Destroyed Cetus Guard 20202 | -5/Cetus | Destroyed Cetus Guard 20206 | -5/Cetus | Destroyed Cetus Guard 20211 | -5/Cetus | Discovered exit to Factory (range 15) 20219 | -5/Cetus | Met Revision 17 20220 | -5/Cetus | Manufactured an Enhanced Grunt 20245 | -5/Cetus | Manufactured an Enhanced Grunt 20270 | -5/Cetus | Manufactured an Enhanced Grunt 20349 | -5/Cetus | Entered Archives 20349 | -5/Archives | Accompanied by 14 allies (A7) 20394 | -5/Archives | Discovered new exit (range 16) 20415 | -5/Archives | Lost 3 allies 20539 | -5/Archives | Discovered exit to Factory (range 15) 20544 | -5/Archives | Build established: Scavenger-Tank 20576 | -5/Archives | Discovered new exit (range 16) 20672 | -5/Archives | System corruption reached 10% 21028 | -5/Archives | Entered Hub_04(d) 21028 | -5/Hub_04(d) | Accompanied by 9 allies 21090 | -5/Hub_04(d) | Garrison activated, responded to threat 21129 | -5/Hub_04(d) | Lost 5 allies 21234 | -5/Hub_04(d) | Network Hub disabled 21238 | -5/Hub_04(d) | Spotted Lightning 21238 | -5/Hub_04(d) | Spotted Lightning 21240 | -5/Hub_04(d) | Spotted Lightning 21264 | -5/Hub_04(d) | Destroyed Lightning 21275 | -5/Hub_04(d) | Lost 4 allies 21287 | -5/Hub_04(d) | Destroyed Lightning 21328 | -5/Hub_04(d) | First assault squad dispatched 21330 | -5/Hub_04(d) | Destroyed Lightning 21391 | -5/Hub_04(d) | Found Prototype Device 21391 | -5/Hub_04(d) | Identified Exp. Phase Shifter 21451 | -5/Hub_04(d) | Found Prototype Energy Cannon 21460 | -5/Hub_04(d) | Destroyed 10 combat bots 21581 | -5/Hub_04(d) | Discovered exit to Factory (range 7) 21712 | -5/Hub_04(d) | Network Hub disabled 21732 | -5/Hub_04(d) | Incoming investigation squad redirected 21830 | -5/Hub_04(d) | Discovered exit to Factory (range 12) 21836 | -5/Hub_04(d) | Spotted Lightning 21843 | -5/Hub_04(d) | Spotted Lightning 21845 | -5/Hub_04(d) | Spotted Lightning 21849 | -5/Hub_04(d) | High security lockdown imminent 21857 | -5/Hub_04(d) | Destroyed Lightning 21902 | -5/Hub_04(d) | Destroyed Lightning 21929 | -5/Hub_04(d) | High security lockdown engaged 21968 | -5/Hub_04(d) | System corruption reached 30% 21968 | -5/Hub_04(d) | Network Hub disabled 21990 | -5/Hub_04(d) | Destroyed 13 combat bots 22002 | -5/Hub_04(d) | Core integrity fell below 50% 22004 | -5/Hub_04(d) | Found Corrupted Exp. Phase Shifter 22011 | -5/Hub_04(d) | Found Corrupted Exp. Phase Shifter 22018 | -5/Hub_04(d) | Identified EMDS 22023 | -5/Hub_04(d) | Self-destructed Last Messages --------------- 22015_ Exp. Phase Shifter destroyed. 22015_ Critical hit (Burn: +37). 22015_ Antimatter Reactor destroyed. 22016_ M-28 Smith repairs Lightning. 22016_ Critical hit (Burn: +37). 22017_ Penetrated by Slug. 22017_ Centrium Heavy Treads destroyed. 22018_ Identified EMDS. 22018_ Lgt. Antimatter Cannon destroyed. 22019_ EMDS Slug penetrates L-41 Fighter. 22021_ C-45 Heavy ARC bursts open, deploying its payload. 22021_ G-67 Veteran unfolds itself. 22021_ L-41 Fighter unfolds itself. 22021_ B-60 Warrior unfolds itself. 22021_ G-50 Soldier unfolds itself. 22021_ M-28 Smith unfolds itself. 22021_ EMDS Slug penetrates G-67 Veteran. 22021_ EMDS destroyed. 22021_ Penetrated by Slug. 22022_ G-50 Soldier IFF system glitched. Map ----- +----------------------------------------------------+ | # ### "###"##+## ##### # """" """?? | | # + + | | # # #############+#####+# """" """?? | | # # # ?? #??""""?????? | | # # / ""?" """" #????""?????? | | # * + "# ! "?"" """" #???????????? | | # # ## ]!! ???"" """" #???????????? | | # [# !## ]! ???""" """" #???????????? | | # # !//#? ]! ??? #???????????? | | # # */%####!#####???#########???????????? | | " " * !/! =!!=#??????????????????????????? | | # ########### #??????????????????????????? | | # #????####?#"#????"?"?" ????????????????? | | # #????# #?;%#????" " ??????????????? | | ###+###????#;;###;#### " " ????????????? | | ??# ######## # ????????????? | | ??# ## " " # " ???????????? | | ??####### #; # " ???????????? | | ?????#### #; " # ???????????? | | ?##### # #; h # ????????????? | | ?# " #" # g ?????????????? | | # """""""#" g ???????????????? | | ?# " "" l ] m #;###?????????????? | | # " ;;;;#i##! =[! ! #?????????????? | | " %=g /%%=gggl% %*###???????????????? | | ??#" = mb%!hhg l@ !< =! =%* ????????? | | ???# =g;=gl*=! = %!###???????????????? | | ???# [ =%;=!% =! =!#?????????????????? | | ???###" ;;;; ###?????????????????? | | ??? ";;;;;;;;;;;; #???????????????????? | | ?? " ; # #???????????????????? | | ?### " ! ; ### ???????????????????? | | ???# " ; #??###??????????????????? | | ???# " ; #??????????????i????????? | | ???# " ; #?????????????h?????????? | | ???# " ; #?????????????h?????????? | | ???# " ; #???????????????????????? | | ???# " ; #???????????????????????? | | ???# " ; #???????????????????????? | | ???## " ; #???????????????????????? | | ???? """""" """""" ????????????????????????? | | ????? ???????????????????????????????? | | ??????? ?????????????????????????????????? | | ?????????????????????????????????????????????? | | ?????????????????????????????????????????????? | | ?????????????????????????????????????????????? | | ?????????????????????????????????????????????? | | ?????????????????????????????????????????????? | | ?????????????????????????????????????????????? | | ?????????????????????????????????????????????? | +----------------------------------------------------+ Best States ------------- Heat Dissipation 83 Energy Generation 43 Energy Capacity 590 Matter Stores 300 Matter Capacity 350 Sight Range 16 Terrain Scan Density 110 Jamming Range 14 EM Shielding 3 Armor Coverage 225 Resistance: TH 15 Propulsion Shielding 15 Weapon Cycling 15 Phase Shifting 20 Evasion (%) 60 Targeting Accuracy 16 Recoil Reduction 6 Matter Filtering 30 Kinecelleration 40 Offensive Hacking 12 Defensive Hacking 12 Authchip Count 1 Item Schematics ----------------- Huge Storage Unit | -9/Materials | Hacked Lgt. Treads | -9/Materials | Scanalyzed Arm. Treads | -8/Materials | Hacked Med. Treads | -8/Storage | Hacked Matter Compressor | -8/Storage | Hacked Adv. Drone Bay | -7/Factory | Hacked Imp. Medium Treads | -6/Factory | Scanalyzed Fission Core | -6/Factory | Hacked Combat Drone Bay | -6/Data Miner | Free Lgt. Regenerative Plating | -6/Data Miner | Free Enh. Flexi-carbon Leg | -6/Data Miner | Free Prc. Matter Filter | -6/Data Miner | Free Imp. KE Penetrator | -6/Data Miner | Free Imp. Linear Gravjet | -6/Data Miner | Free Adv. Particle Charger | -6/Data Miner | Free Railgun | -6/Data Miner | Free HERF Cannon | -6/Data Miner | Free Adv. Remote Force Field | -6/Data Miner | Free Adv. Weapon Cycler | -5/Factory | Hacked Arm. Medium Treads | -5/Factory | Hacked Neutrino Core | -5/Extension | Hacked Robot Schematics ------------------ G-34 Mercenary | -8/Storage | Hacked E-15 Imp | -6/Data Miner | Free A-15 Conveyor | -6/Data Miner | Free H-66 Slayer | -6/Data Miner | Free L-61 Swordsman | -6/Data Miner | Free R-10 Processor | -6/Data Miner | Free Fabricated ------------ Arm. Treads | x2 | -7/Factory Matter Compressor | x2 | -7/Factory Arm. Treads | x2 | -6/Factory Repaired ---------- Lgt. Treads | 8% | -10/Materials Lgt. Treads | 10% | -10/Materials Lgt. Treads | 19% | -9/Materials Lgt. Treads | 24% | -9/Materials Lgt. Treads | 58% | -8/Storage Lgt. Treads | 62% | -8/Storage Lgt. Treads | 70% | -8/Storage | Corrupted Hardlight Generator | 3% | -8/Storage Lgt. Treads | 20% | -7/Factory Arm. Treads | 4% | -6/Factory Arm. Treads | 6% | -6/Factory Imp. Medium Treads | 10% | -6/Factory Studied --------- None Alien Tech Used ----------------- None Achievements -------------- YOLO Challenges ------------ None Game ------ Seed NullInertialScanner Manual? 0 Play Time 03:11:36 Cumulative 351.1 hours Start 2025.11.27 @ 13:22:49 End 2025.11.27 @ 18:13:14 Sessions 3 Manual Loads 0 Difficulty Rogue Special Mode None Game No. 363 Rogue 359 Adventurer 3 Explorer 1 Win Type - Total 2 Types 2/0/0/0/0/0/0/0/0/0 Lore% 83 Gallery% 78 Achievement% 65 Wizard Run 0 Options --------- Layout 0 ASCII 0 Keyboard 0 Movement Mouse Keybinds 0 Fullscreen 2 Font 18/SmallcapsGlow Map View 76x50 Zoom Use 0% Tactical HUD 1 Map Filters NONE Filters NONE Steam 1 RUN: 70a5f947-858d-4906-b254-e7911e5a2428